bitfinex-derivatives/quotes_SOLF0:USTF0_20251024
["timestamp","ask_amount","ask_price","bid_price","bid_amount"]
[1761282567055,2.64,193.95,193.87,1.8541958]
[1761282567242,2.64,193.95,193.88,1.8541958]
[1761282567443,2.64,193.95,193.89,1.8541958]
[1761282567648,2.64,193.95,193.85,3.74528323]
[1761282567649,2.64,193.95,193.9,1.8541958]
[1761282567957,2.64,193.95,193.91,1.8541958]
[1761282568150,2.64,193.95,193.92,1.8541958]
[1761282568351,2.64,193.95,193.85,3.74528323]
[1761282568656,2.64,193.95,193.86,1.85353985]
[1761282568852,2.64,193.95,193.85,3.74528323]
[1761282568853,2.64,193.95,193.87,1.85353985]
[1761282569048,2.64,193.95,193.85,3.74528323]
[1761282569049,2.64,193.95,193.88,1.85353985]
[1761282569248,2.64,193.95,193.89,1.85353985]
[1761282569548,2.64,193.95,193.9,1.85353985]
[1761282569753,2.64,193.95,193.85,3.74528323]
[1761282569957,2.64,193.95,193.86,1.85484616]
[1761282570158,2.64,193.95,193.87,1.85484616]
[1761282570456,2.64,193.95,193.77,23.58]
[1761282570457,2.64,193.95,193.88,1.85484616]
[1761282570649,2.64,193.95,193.89,1.85484616]
[1761282570850,2.64,193.95,193.8,5.94528323]
[1761282571048,2.64,193.95,193.81,1.85724076]
[1761282571353,2.64,193.95,193.82,1.85724076]
[1761282571553,2.64,193.95,193.83,1.85724076]
[1761282571754,2.64,193.95,193.84,1.85724076]
[1761282571948,2.64,193.95,193.85,1.85724076]
[1761282572148,2.64,193.95,193.8,2.2]
[1761282572361,2.64,193.95,193.72,62.0]
[1761282572362,2.64,193.95,193.82,2.2]
[1761282574560,2.64,193.95,193.81,6.08533132]
[1761282574759,2.64,193.95,193.79,2.2]
[1761282575160,2.64,193.95,193.83,2.34128605]
[1761282577559,2.61,193.93,193.79,2.2]
[1761282577858,2.61,193.93,193.8,2.34128605]
[1761282578560,2.61,193.87,193.75,4.54128605]
[1761282581367,2.61,193.87,193.71,2.2]
[1761282581664,2.61,193.87,193.73,2.34128605]
[1761282582666,2.61,193.87,193.73,4.54128605]
[1761282583062,2.61,193.87,193.76,2.34128605]
[1761282583669,2.61,193.87,193.77,2.34128605]
[1761282583966,2.61,193.87,193.76,2.34128605]
[1761282584168,2.61,193.85,193.76,2.34128605]
[1761282584468,2.61,193.83,193.76,2.34128605]
[1761282586160,2.61,193.82,193.76,2.34128605]
[1761282586563,2.61,193.82,193.75,2.34128605]
[1761282588060,2.61,193.82,193.72,2.34128605]
[1761282588566,2.61,193.82,193.72,4.54128605]
[1761282589864,2.61,193.81,193.72,4.54128605]
[1761282590660,2.61,193.81,193.73,2.34128605]
[1761282592665,2.61,193.81,193.73,4.54128605]
[1761282594264,2.61,193.81,193.73,2.2]
[1761282594465,2.61,193.81,193.73,4.54128605]
[1761282596370,2.61,193.81,193.73,2.2]
[1761282596569,2.61,193.81,193.74,2.34128605]
[1761282599759,2.61,193.81,193.67,95.38929942]
[1761282599963,2.61,193.81,193.7,4.55128605]
[1761282600363,4.95128605,193.81,193.67,99.94058547]
[1761282600567,3.92160839,193.8,193.67,99.94058547]
[1761282600762,2.77,193.78,193.67,2.34128605]
[1761282600964,2.77,193.77,193.67,2.34128605]
[1761282602064,2.77,193.77,193.67,4.55128605]
[1761282602762,2.77,193.76,193.67,4.55128605]
[1761282603273,3.92160839,193.79,193.71,2.21]
[1761282603470,2.77,193.81,193.71,2.21]
[1761282608380,7.05287766,193.81,193.71,2.21]
[1761282608579,2.77,193.81,193.71,2.21]
[1761282611872,2.77,193.78,193.71,2.21]
[1761282612275,2.77,193.78,193.68,2.21]
[1761282612472,2.77,193.78,193.6,8.67662191]
[1761282612473,2.77,193.78,193.65,2.21]
[1761282612681,2.77,193.75,193.65,2.21]
[1761282616495,3.92160839,193.76,193.69,2.34128605]
[1761282616690,2.77,193.79,193.7,2.21]
[1761282618494,2.77,193.78,193.7,2.21]
[1761282620084,2.77,193.77,193.7,2.21]
[1761282622197,6.69160839,193.77,193.7,2.21]
[1761282622384,2.77,193.77,193.7,2.21]
[1761282622589,2.77,193.76,193.7,2.21]
[1761282625392,6.69160839,193.76,193.7,2.21]
[1761282625598,2.77,193.76,193.7,2.21]
[1761282626091,2.77,193.75,193.7,2.21]
[1761282629291,2.76,193.74,193.7,2.21]
[1761282630397,6.68160839,193.74,193.7,2.21]
[1761282630598,2.76,193.74,193.7,2.21]
[1761282630900,2.76,193.74,193.67,2.21]
[1761282631288,3.92160839,193.73,193.67,2.21]
[1761282631492,6.68160839,193.73,193.67,2.21]
[1761282631694,2.76,193.73,193.67,2.21]
[1761282632197,2.76,193.71,193.65,2.34128605]
[1761282632398,7.06657008,193.71,193.65,4.55128605]
[1761282632598,2.76,193.71,193.65,2.34128605]
[1761282632792,2.76,193.71,193.66,2.21]
[1761282633498,8.22817847,193.72,193.66,2.21]
[1761282633696,8.22817847,193.71,193.66,2.21]
[1761282633896,4.30657008,193.7,193.66,2.21]
[1761282634201,4.30657008,193.72,193.66,2.21]
[1761282634698,7.06657008,193.72,193.68,1.50085809]
[1761282634893,2.76,193.72,193.68,3.71085809]
[1761282635293,11.04419291,193.72,193.68,2.21]
[1761282635498,8.28419291,193.71,193.68,3.71085809]
[1761282635701,4.30657008,193.7,193.68,3.71085809]
[1761282635999,2.76,193.72,193.68,3.71085809]
[1761282637003,2.76,193.71,193.68,2.21]
[1761282637198,8.28421736,193.71,193.7,3.71085809]
[1761282637397,4.30657008,193.71,193.7,3.71085809]
[1761282637593,4.30657008,193.72,193.7,3.71085809]
[1761282640505,8.28438769,193.73,193.7,3.71085809]
[1761282640705,8.28438769,193.72,193.7,3.71085809]
[1761282640907,8.28438769,193.72,193.66,4.66607326]
[1761282640908,7.06657008,193.71,193.68,1.50085809]
[1761282641110,7.06657008,193.7,193.66,1.50085809]
[1761282641311,7.06657008,193.69,193.66,1.50085809]
[1761282641512,2.76,193.69,193.66,1.50085809]
[1761282642112,2.76,193.69,193.66,3.71085809]
[1761282642312,11.04524142,193.69,193.66,3.71085809]
[1761282642511,4.30657008,193.68,193.66,3.71085809]
[1761282643310,2.76,193.67,193.64,2.21]
[1761282643910,2.76,193.67,193.63,1.50085809]
[1761282643911,4.30657008,193.66,193.63,3.71085809]
[1761282644711,4.30657008,193.66,193.61,3.71085809]
[1761282644914,7.06657008,193.65,193.61,3.71085809]
[1761282645114,2.76,193.65,193.61,3.71085809]
[1761282645906,2.76,193.65,193.59,4.66607326]
[1761282646111,2.76,193.65,193.56,8.37693135]
[1761282646112,2.76,193.63,193.56,8.37693135]
[1761282646315,2.76,193.62,193.56,3.71085809]
[1761282646812,7.06657008,193.62,193.56,3.71085809]
[1761282647017,2.76,193.62,193.56,3.71085809]
[1761282647717,2.76,193.62,193.58,3.71085809]
[1761282648220,2.76,193.62,193.58,1.50085809]
[1761282648419,2.76,193.62,193.59,2.21]
[1761282648617,3.97966722,193.66,193.59,2.21]
[1761282648618,4.30657008,193.65,193.59,2.21]
[1761282648816,4.30657008,193.66,193.64,2.21]
[1761282649013,2.76,193.67,193.59,3.71085809]
[1761282649320,4.30657008,193.66,193.59,3.71085809]
[1761282649514,7.06657008,193.66,193.59,3.71085809]
[1761282650322,2.76,193.66,193.59,3.71085809]
[1761282651721,2.76,193.66,193.61,3.71085809]
[1761282652123,2.76,193.66,193.61,2.21]
[1761282652319,2.76,193.65,193.61,3.71085809]
[1761282653121,2.76,193.64,193.6,1.50085809]
[1761282653423,2.76,193.64,193.6,3.71085809]
[1761282654221,2.76,193.64,193.6,1.50085809]
[1761282657324,11.02899049,193.67,193.61,2.21]
[1761282657517,2.76,193.66,193.61,2.21]
[1761282658421,2.76,193.66,193.6,1.50085809]
[1761282658613,2.76,193.66,193.58,2.21]
[1761282658819,2.76,193.66,193.61,1.50085809]
[1761282661119,2.76,193.66,193.58,2.21]
[1761282661321,2.76,193.66,193.6,1.50085809]
[1761282663725,2.76,193.66,193.58,2.21]
[1761282663921,2.64,193.65,193.58,1.50085809]
[1761282664120,1.50085809,193.64,193.56,1.50085809]
[1761282664322,2.64,193.63,193.56,3.71085809]
[1761282664722,4.30657008,193.63,193.6,1.50085809]
[1761282664926,2.64,193.66,193.6,3.71085809]
[1761282665321,2.64,193.66,193.62,1.50085809]
[1761282665523,2.64,193.66,193.62,3.71085809]
[1761282665821,11.11657085,193.66,193.62,3.71085809]
[1761282666027,4.52099214,193.65,193.62,3.71085809]
[1761282666324,11.11613004,193.69,193.65,2.21]
[1761282666521,2.64,193.69,193.65,2.21]
[1761282666721,2.64,193.69,193.56,4.75405355]
[1761282666722,2.64,193.69,193.63,1.50085809]
[1761282667325,2.64,193.69,193.61,1.50085809]
[1761282667526,2.64,193.69,193.61,3.71085809]
[1761282667826,11.11439409,193.69,193.61,3.71085809]
[1761282668026,8.47439409,193.69,193.61,3.71085809]
[1761282668228,11.11439409,193.68,193.61,3.71085809]
[1761282668428,2.64,193.63,193.55,3.71085809]
[1761282668623,2.64,193.63,193.56,2.21]
[1761282669122,1.50085809,193.62,193.56,2.21]
[1761282670431,4.14085809,193.62,193.56,2.21]
[1761282670630,1.50085809,193.6,193.53,2.21]
[1761282670827,4.14085809,193.6,193.53,2.21]
[1761282671030,2.64,193.59,193.53,2.21]
[1761282671626,4.14085809,193.59,193.52,98.73743052]
[1761282671828,2.64,193.58,193.52,98.73743052]
[1761282672725,2.64,193.58,193.5,1.50085809]
[1761282673032,2.64,193.58,193.51,2.21]
[1761282673432,7.16436157,193.58,193.51,2.21]
[1761282673626,2.64,193.57,193.53,1.50085809]
[1761282674430,2.64,193.57,193.51,3.71085809]
[1761282675030,2.64,193.57,193.5,1.50085809]
[1761282675328,1.50085809,193.56,193.48,1.50085809]
[1761282675631,2.64,193.55,193.48,1.50085809]
[1761282676024,2.64,193.54,193.48,1.50085809]
[1761282678525,2.64,193.54,193.49,1.50085809]
[1761282683138,2.64,193.54,193.49,3.71085809]
[1761282683539,2.64,193.54,193.5,2.21]
[1761282683735,2.64,193.53,193.42,2.21]
[1761282683938,2.64,193.51,193.44,1.50085809]
[1761282684131,1.50085809,193.5,193.42,3.71085809]
[1761282684335,2.64,193.52,193.45,2.21]
[1761282684738,4.52335392,193.52,193.45,2.21]
[1761282685040,1.50085809,193.53,193.45,2.21]
[1761282685041,2.64,193.51,193.45,2.21]
[1761282685442,2.64,193.51,193.46,1.50085809]
[1761282689940,4.14085809,193.51,193.4,2.2]
[1761282690254,2.86,193.5,193.43,1.50085809]
[1761282690944,2.86,193.49,193.43,1.50085809]
[1761282691945,2.86,193.49,193.4,2.2]
[1761282691946,2.86,193.49,193.42,1.50085809]
[1761282692541,2.86,193.49,193.45,2.2]
[1761282693248,2.86,193.49,193.46,1.50085809]
[1761282693452,2.86,193.53,193.46,3.70085809]
[1761282693637,2.86,193.53,193.48,3.70085809]
[1761282694641,3.94562209,193.56,193.48,2.3493815]
[1761282694848,2.86,193.56,193.49,2.2]
[1761282695035,6.80562209,193.56,193.49,2.2]
[1761282695349,2.86,193.56,193.49,2.2]
[1761282696044,2.86,193.56,193.52,2.2]
[1761282696243,43.28,193.63,193.52,2.2]
[1761282696448,2.86,193.61,193.52,2.2]
[1761282696642,2.86,193.6,193.52,2.2]
[1761282713359,2.86,193.59,193.52,2.2]
[1761282713763,2.86,193.59,193.49,2.2]
[1761282714053,2.86,193.58,193.49,2.2]
[1761282714254,2.86,193.57,193.49,2.2]
[1761282714460,6.80527621,193.57,193.49,2.2]
[1761282718456,3.94527621,193.57,193.49,2.2]
[1761282718759,2.86,193.56,193.49,2.2]
[1761282719059,2.86,193.55,193.46,4.75405355]
[1761282719255,2.8,193.54,193.46,4.75405355]
[1761282719856,2.8,193.54,193.46,6.96405355]
[1761282720359,2.8,193.54,193.47,2.21]
[1761282721157,4.45944306,193.55,193.48,2.21]
[1761282721360,2.8,193.58,193.5,2.21]
[1761282729167,2.8,193.57,193.5,2.21]
[1761282732181,8.42968936,193.58,193.5,2.21]
[1761282732388,8.42968936,193.57,193.5,2.21]
[1761282732586,4.45944306,193.56,193.5,2.21]
[1761282732884,2.8,193.59,193.5,2.21]
[1761282733084,2.8,193.58,193.5,2.21]
[1761282734388,11.23165293,193.58,193.5,2.21]
[1761282734686,8.43165293,193.57,193.5,2.21]
[1761282734982,8.43165293,193.56,193.5,2.21]
[1761282735183,2.8,193.58,193.5,2.21]
[1761282735784,11.26077854,193.58,193.5,2.21]
[1761282736080,8.46077854,193.57,193.5,2.21]
[1761282736284,4.00275219,193.56,193.51,2.21]
[1761282737286,8.46077854,193.56,193.51,2.21]
[1761282737476,8.46077854,193.55,193.51,2.21]
[1761282737676,2.8,193.58,193.51,2.21]
[1761282737881,2.8,193.56,193.51,2.21]
[1761282738077,2.8,193.56,193.51,6.96405355]
[1761282738078,6.80758714,193.55,193.51,6.96405355]
[1761282738283,2.8,193.54,193.51,6.96405355]
[1761282738483,6.80758714,193.54,193.51,6.96405355]
[1761282738687,2.8,193.54,193.51,6.96405355]
[1761282739686,8.47099865,193.54,193.52,2.21]
[1761282739886,2.8,193.55,193.52,2.21]
[1761282740186,8.47978726,193.54,193.52,6.96405355]
[1761282740383,8.47978726,193.54,193.52,4.75405355]
[1761282740591,2.8,193.52,193.49,4.75405355]
[1761282740892,11.27978726,193.51,193.49,4.75405355]
[1761282741079,2.3493815,193.57,193.49,4.75405355]
[1761282741080,2.8,193.54,193.49,4.75405355]
[1761282741385,8.48337628,193.53,193.5,2.21]
[1761282741587,8.48337628,193.52,193.5,2.21]
[1761282741784,8.48337628,193.51,193.5,2.21]
[1761282742485,11.28337628,193.53,193.5,2.21]
[1761282742692,8.48337628,193.52,193.5,2.21]
[1761282744090,4.47003843,193.52,193.5,2.21]
[1761282745186,8.48153438,193.55,193.52,2.21]
[1761282745488,2.8,193.53,193.5,4.75405355]
[1761282745693,2.8,193.52,193.49,4.75405355]
[1761282745990,2.8,193.51,193.48,4.75405355]
[1761282746185,2.8,193.49,193.45,4.75405355]
[1761282746384,2.8,193.48,193.44,6.96405355]
[1761282746583,2.8,193.47,193.44,6.96405355]
[1761282746890,11.28153438,193.51,193.45,4.75405355]
[1761282747091,11.28153438,193.5,193.46,2.21]
[1761282747290,2.8,193.5,193.46,2.21]
[1761282747879,6.80917781,193.5,193.46,2.21]
[1761282748178,2.84,193.49,193.43,2.21]
[1761282748583,2.84,193.48,193.43,2.21]
[1761282750094,2.84,193.48,193.38,9.47228424]
[1761282750095,2.84,193.48,193.4,8.54533586]
[1761282750395,2.84,193.48,193.4,2.21]
[1761282750697,2.69,193.47,193.4,2.21]
[1761282756489,2.69,193.47,193.37,2.21]
[1761282756690,2.81,193.45,193.38,1.5051802]
[1761282756894,2.81,193.45,193.38,3.7151802]
[1761282757399,2.81,193.45,193.39,2.21]
[1761282760500,2.81,193.45,193.4,1.5051802]
[1761282760694,2.81,193.45,193.4,3.7151802]
[1761282762197,2.81,193.45,193.4,1.5051802]
[1761282762499,2.81,193.45,193.41,2.21]
[1761282764904,2.81,193.48,193.42,3.7151802]
[1761282769309,2.81,193.48,193.44,1.5051802]
[1761282769515,2.81,193.48,193.44,3.7151802]
[1761282771921,2.81,193.48,193.42,1.5051802]
[1761282772118,2.81,193.48,193.42,3.7151802]
[1761282781042,2.81,193.48,193.43,2.21]
[1761282781343,2.81,193.48,193.44,1.5051802]
[1761282781532,2.81,193.48,193.44,3.7151802]
[1761282781932,2.81,193.48,193.44,1.5051802]
[1761282782139,2.81,193.48,193.45,2.21]
[1761282782933,2.74,193.45,193.36,6.33533586]
[1761282783132,2.74,193.43,193.35,3.7151802]
[1761282783332,2.74,193.41,193.35,2.21]
[1761282783535,2.74,193.41,193.33,1.5051802]
[1761282783738,2.74,193.41,193.33,3.7151802]
[1761282783932,2.74,193.41,193.34,2.21]
[1761282784936,2.74,193.41,193.34,3.7151802]
[1761282785133,2.74,193.41,193.35,2.21]
[1761282785335,2.74,193.45,193.39,2.21]
[1761282785937,2.74,193.44,193.39,2.21]
[1761282791243,6.73983876,193.44,193.39,2.21]
[1761282791440,2.74,193.44,193.39,2.21]
[1761282792339,2.74,193.44,193.4,1.5051802]
[1761282792746,2.74,193.44,193.4,3.7151802]
[1761282792943,2.74,193.43,193.4,3.7151802]
[1761282793246,2.74,193.43,193.37,2.21]
[1761282793544,2.74,193.43,193.4,2.21]
[1761282793933,7.24052172,193.43,193.4,2.21]
[1761282794138,2.74,193.43,193.4,2.21]
[1761282796350,2.74,193.43,193.37,2.21]
[1761282796542,1.5051802,193.41,193.31,2.21]
[1761282796737,1.5051802,193.41,193.3,6.33533586]
[1761282796738,1.5051802,193.37,193.3,1.5051802]
[1761282796946,1.5051802,193.35,193.26,100.24205795]
[1761282797146,2.74,193.34,193.27,1.5051802]
[1761282797447,2.74,193.34,193.27,3.7151802]
[1761282798348,2.74,193.34,193.26,93.90672209]
[1761282798349,2.74,193.4,193.3,2.21]
[1761282798650,2.74,193.38,193.31,3.7151802]
[1761282799546,2.74,193.37,193.31,2.21]
[1761282800251,2.74,193.37,193.33,2.21]
[1761282801154,2.74,193.37,193.33,3.7151802]
[1761282801650,2.74,193.37,193.33,1.5051802]
[1761282802050,2.74,193.37,193.3,2.21]
[1761282802254,2.74,193.37,193.31,1.5051802]
[1761282803656,2.74,193.37,193.3,2.21]
[1761282803952,2.74,193.36,193.3,2.21]
[1761282809252,2.74,193.36,193.31,1.5051802]
[1761282809453,2.74,193.36,193.31,3.7151802]
[1761282809853,2.74,193.36,193.31,2.21]
[1761282810055,2.74,193.36,193.31,3.7151802]
[1761282815566,3.85670739,193.38,193.32,2.21]
[1761282815858,2.72,193.38,193.32,3.7151802]
[1761282818657,2.72,193.38,193.32,2.21]
[1761282818858,2.72,193.37,193.32,2.21]
[1761282822262,2.72,193.37,193.33,2.21]
[1761282823167,3.86188812,193.41,193.36,2.21]
[1761282823168,2.72,193.4,193.36,2.21]
[1761282823377,2.72,193.39,193.33,2.21]
[1761282824969,2.72,193.38,193.33,2.21]
[1761282826266,2.72,193.37,193.29,2.21]
[1761282827172,2.72,193.36,193.29,2.21]
[1761282827473,2.72,193.35,193.29,2.21]
[1761282828675,2.72,193.38,193.29,2.21]
[1761282828974,6.58860889,193.37,193.29,2.21]
[1761282829171,3.86860889,193.36,193.29,2.21]
[1761282829372,11.16291027,193.37,193.29,2.21]
[1761282829582,3.86860889,193.36,193.29,2.21]
[1761282829875,2.72,193.37,193.29,2.21]
[1761282830072,7.16999177,193.41,193.29,2.21]
[1761282830073,12.47956505,193.39,193.29,2.21]
[1761282830374,11.16288561,193.38,193.29,2.21]
[1761282830574,3.86860889,193.37,193.29,2.21]
[1761282831577,8.44331309,193.37,193.29,2.21]
[1761282831778,3.86860889,193.37,193.29,2.21]
[1761282832075,2.72,193.38,193.29,2.21]
[1761282832472,3.86860889,193.37,193.29,2.21]
[1761282834978,3.86860889,193.36,193.29,2.21]
[1761282838179,2.72,193.39,193.29,2.21]
[1761282838480,11.15222889,193.38,193.29,2.21]
[1761282838675,8.43222889,193.37,193.29,2.21]
[1761282838875,3.85196743,193.36,193.29,2.21]
[1761282839182,6.70196743,193.37,193.29,2.21]
[1761282839380,3.85196743,193.36,193.29,2.21]
[1761282839580,8.4334812,193.37,193.29,2.21]
[1761282839782,3.85196743,193.36,193.29,2.21]
[1761282839973,15.32995971,193.39,193.29,2.21]
[1761282840173,12.47995971,193.38,193.29,2.21]
[1761282840379,8.43522525,193.37,193.29,2.21]
[1761282840578,3.85196743,193.36,193.29,2.21]
[1761282840779,4.58564664,193.38,193.29,2.21]
[1761282840979,4.58564664,193.38,193.27,4.6555]
[1761282840980,8.44219575,193.37,193.31,2.21]
[1761282841179,3.85654911,193.36,193.31,2.21]
[1761282841381,4.58791318,193.36,193.31,2.21]
[1761282841683,8.63675588,193.38,193.31,2.21]
[1761282841882,12.4952126,193.37,193.31,2.21]
[1761282842181,8.4463699,193.36,193.31,2.21]
[1761282842382,2.85,193.38,193.31,2.21]
[1761282842573,8.39521738,193.37,193.31,2.21]
[1761282842775,3.85876688,193.36,193.31,2.21]
[1761282842981,4.5364505,193.37,193.31,2.21]
[1761282843285,11.24521738,193.36,193.31,2.21]
[1761282843589,3.85876688,193.35,193.31,2.21]
[1761282843788,2.85,193.36,193.31,2.21]
[1761282844083,3.85912772,193.35,193.31,2.21]
[1761282844283,2.85,193.36,193.31,2.21]
[1761282844485,3.85907678,193.35,193.31,2.21]
[1761282844682,2.85,193.36,193.31,2.21]
[1761282844886,3.85907678,193.35,193.31,2.21]
[1761282845085,2.85,193.36,193.31,2.21]
[1761282845383,3.85907678,193.35,193.31,2.21]
[1761282845572,2.85,193.36,193.31,2.21]
[1761282845773,6.70909588,193.35,193.31,2.21]
[1761282845977,2.85,193.35,193.31,2.21]
[1761282846280,3.8592001,193.34,193.31,2.21]
[1761282846483,2.85,193.34,193.31,2.21]
[1761282846684,2.85,193.34,193.28,2.21]
[1761282846891,2.85,193.34,193.29,2.21]
[1761282847380,8.5872086,193.35,193.29,2.21]
[1761282847575,3.85930544,193.34,193.29,2.21]
[1761282847778,11.43702947,193.37,193.29,2.21]
[1761282847983,12.44629032,193.36,193.29,2.21]
[1761282848284,8.39650019,193.35,193.29,2.21]
[1761282848492,3.85926085,193.34,193.29,2.21]
[1761282848692,4.53702847,193.36,193.29,2.21]
[1761282848991,3.8591348,193.35,193.29,2.21]
[1761282849182,3.8591348,193.34,193.29,2.21]
[1761282849384,4.53702847,193.36,193.29,2.21]
[1761282849679,3.85922209,193.35,193.29,2.21]
[1761282849975,3.85922209,193.34,193.29,2.21]
[1761282850179,4.53702847,193.36,193.29,2.21]
[1761282850180,7.38702847,193.36,193.29,2.21]
[1761282850388,3.85928015,193.35,193.29,2.21]
[1761282850681,2.85,193.33,193.29,45.37]
[1761282850881,2.85,193.33,193.3,2.21]
[1761282851685,11.4376802,193.37,193.3,2.21]
[1761282851985,11.24714512,193.36,193.3,2.21]
[1761282852186,6.70958747,193.35,193.3,2.21]
[1761282852381,2.85,193.35,193.3,2.21]
[1761282855484,6.31316357,193.42,193.3,2.21]
[1761282855485,2.85,193.38,193.3,2.21]
[1761282855689,2.35362518,193.43,193.3,2.21]
[1761282855690,3.86003206,193.37,193.3,2.21]
[1761282855888,4.53768482,193.38,193.3,2.21]
[1761282856088,3.85977766,193.37,193.3,2.21]
[1761282856290,8.5514138,193.39,193.32,2.21]
[1761282856484,11.24709897,193.38,193.32,2.21]
[1761282856793,2.85,193.36,193.32,2.21]
[1761282858493,4.53687878,193.38,193.32,2.21]
[1761282858695,6.7089325,193.37,193.32,2.21]
[1761282858895,2.85,193.37,193.32,2.21]
[1761282860389,2.85,193.35,193.29,45.37]
[1761282860797,2.85,193.35,193.29,45.35]
[1761282863690,8.54984511,193.38,193.3,2.21]
[1761282863893,8.39595026,193.37,193.3,2.21]
[1761282864091,3.8590783,193.36,193.3,2.21]
[1761282864292,2.85,193.37,193.3,2.21]
[1761282864494,3.85874829,193.36,193.3,2.21]
[1761282864690,2.85,193.37,193.3,2.21]
[1761282864891,3.85879323,193.36,193.3,2.21]
[1761282865096,2.85,193.37,193.3,2.21]
[1761282865297,3.8587929,193.36,193.3,2.21]
[1761282865504,2.85,193.37,193.3,2.21]
[1761282865809,3.85878939,193.36,193.3,2.21]
[1761282866009,2.85,193.37,193.3,2.21]
[1761282866202,3.85878939,193.36,193.3,2.21]
[1761282866403,2.85,193.37,193.3,2.21]
[1761282866605,3.85879642,193.36,193.3,2.21]
[1761282866805,2.85,193.37,193.3,2.21]
[1761282867006,3.840536,193.36,193.3,2.21]
[1761282867199,2.85,193.37,193.3,2.21]
[1761282867407,3.84055277,193.36,193.3,2.21]
[1761282867602,7.38644229,193.37,193.3,2.21]
[1761282867807,3.84048623,193.36,193.3,2.21]
[1761282868103,2.85,193.37,193.3,2.21]
[1761282868307,3.8404859,193.36,193.3,2.21]
[1761282868508,2.85,193.37,193.3,2.21]
[1761282868708,3.8405721,193.36,193.3,2.21]
[1761282868909,2.85,193.37,193.3,2.21]
[1761282869203,3.84057178,193.36,193.3,2.21]
[1761282869409,2.85,193.37,193.3,2.21]
[1761282869709,3.8405366,193.36,193.3,2.21]
[1761282869910,7.38648479,193.37,193.3,2.21]
[1761282870111,3.8405357,193.36,193.3,2.21]
[1761282870311,2.85,193.37,193.3,2.21]
[1761282870514,3.84050075,193.36,193.3,2.21]
[1761282870709,2.85,193.37,193.3,2.21]
[1761282870912,3.84050045,193.36,193.3,2.21]
[1761282871113,2.85,193.37,193.3,2.21]
[1761282871312,3.8405011,193.36,193.3,2.21]
[1761282871514,2.85,193.37,193.3,2.21]
[1761282871813,3.84054748,193.36,193.3,2.21]
[1761282872014,7.38639933,193.37,193.3,2.21]
[1761282872210,3.84054748,193.36,193.3,2.21]
[1761282872410,2.85,193.37,193.3,2.21]
[1761282872615,3.84078273,193.36,193.3,2.21]
[1761282872816,2.85,193.37,193.3,2.21]
[1761282873016,3.84078338,193.36,193.3,2.21]
[1761282873211,2.85,193.37,193.3,2.21]
[1761282873418,8.44304211,193.36,193.3,2.21]
[1761282873717,4.60223485,193.36,193.3,2.21]
[1761282874520,2.65,193.37,193.3,2.21]
[1761282874713,8.44344644,193.36,193.3,2.21]
[1761282874920,4.60223485,193.36,193.3,2.21]
[1761282875111,6.49125534,193.35,193.3,2.21]
[1761282875310,2.65,193.35,193.3,2.21]
[1761282875509,4.84044352,193.4,193.3,2.21]
[1761282875510,11.09379279,193.37,193.3,2.21]